bitfinex-derivatives/quotes_SOLF0:USTF0_20250105
["timestamp","ask_amount","ask_price","bid_price","bid_amount"]
[1736044467787,9.77220253,215.83,215.75,7.21220253]
[1736044468184,2.3171,215.82,215.76,2.3177]
[1736044471599,2.3171,215.82,215.76,9.52990253]
[1736044472398,9.77220253,215.83,215.76,2.3177]
[1736044472598,9.77220253,215.83,215.76,9.52990253]
[1736044473509,12.08910253,215.83,215.76,9.52990253]
[1736044474708,12.08910253,215.83,215.77,2.3176]
[1736044480007,12.08910253,215.83,215.78,7.21220253]
[1736044482814,4.8769,215.83,215.78,7.21220253]
[1736044485117,2.56,215.83,215.78,7.21220253]
[1736044485416,2.56,215.83,215.79,7.21220253]
[1736044493928,7.21220253,215.85,215.79,7.21220253]
[1736044494128,2.56,215.84,215.81,2.3171]
[1736044494827,2.56,215.84,215.81,9.52930253]
[1736044498324,127.96632342,215.96,215.83,7.21220253]
[1736044498528,91.27101181,216.02,215.95,7.21220253]
[1736044498726,83.48048454,216.02,216.01,7.21220253]
[1736044498928,11.33076723,216.02,216.01,7.21220253]
[1736044499126,11.33076723,216.02,216.01,9.99220253]
[1736044499322,11.33076723,216.02,216.01,23.90220253]
[1736044499528,2.78,216.25,216.01,23.90220253]
[1736044499529,2.78,216.29,216.01,71.57720555]
[1736044499734,13.92,216.45,216.23,7.21220253]
[1736044499735,1.4719,216.42,216.23,7.21220253]
[1736044500031,2.78,216.33,216.24,438.65952118]
[1736044500334,2.78,216.33,216.25,7.21220253]
[1736044500524,2.78,216.33,216.27,7.21220253]
[1736044500939,2.78,216.35,216.3,7.21220253]
[1736044501129,2.78,216.36,216.3,445.58091619]
[1736044501324,7.21220253,216.34,216.31,26.60443667]
[1736044501523,7.21220253,216.32,216.31,26.60443667]
[1736044501928,7.21220253,216.32,216.31,15.03729029]
[1736044502132,7.21220253,216.32,216.31,5.78357319]
[1736044502334,11.29264328,216.35,216.31,5.78357319]
[1736044502535,13.60404328,216.35,216.31,5.78357319]
[1736044502731,2.78,216.36,216.32,5.78357319]
[1736044502932,2.78,216.37,216.32,5.78357319]
[1736044503130,2.78,216.37,216.33,5.78357319]
[1736044503327,2.78,216.37,216.34,5.78357319]
[1736044503931,2.78,216.37,216.35,5.78357319]
[1736044504328,2.78,216.37,216.36,5.78357319]
[1736044504532,2.3113,216.36,216.34,629.72133364]
[1736044504732,14.07264328,216.37,216.34,629.72133364]
[1736044505436,14.07264328,216.37,216.32,279.53946958]
[1736044506036,14.07264328,216.37,216.33,138.28795882]
[1736044506735,14.07264328,216.37,216.33,76.23803715]
[1736044507337,16.38384328,216.37,216.33,76.23803715]
[1736044507938,16.38384328,216.37,216.31,279.53946958]
[1736044508334,14.07264328,216.37,216.31,279.53946958]
[1736044508534,2.3113,216.36,216.31,279.53946958]
[1736044508736,2.3113,216.36,216.3,6.35316976]
[1736044509632,2.3113,216.36,216.31,11.59355491]
[1736044509840,11.29264328,216.33,216.29,19.05950929]
[1736044510040,11.29264328,216.3,216.26,50.8253581]
[1736044510337,14.07264328,216.3,216.26,50.8253581]
[1736044511029,14.07264328,216.3,216.18,2.3131]
[1736044511433,2.3121,216.29,216.19,7.66938035]
[1736044511635,2.3121,216.29,216.2,7.66938035]
[1736044512238,2.3121,216.29,216.21,7.66938035]
[1736044512742,2.3121,216.29,216.18,2.3131]
[1736044513240,2.3121,216.29,216.19,7.6641653]
[1736044513441,2.3121,216.29,216.2,7.6641653]
[1736044513836,2.3121,216.29,216.21,7.6641653]
[1736044514038,2.3122,216.28,216.21,7.6641653]
[1736044514332,2.3122,216.28,216.18,2.3131]
[1736044514536,2.3125,216.25,216.16,2.3134]
[1736044514934,11.29264328,216.26,216.15,11.29264328]
[1736044515132,11.29264328,216.26,216.17,7.60404422]
[1736044515538,11.29264328,216.26,216.13,14.07264328]
[1736044515739,11.29264328,216.26,216.14,7.60289366]
[1736044515936,2.3127,216.23,216.15,2.3135]
[1736044516333,2.3127,216.23,216.16,7.60289366]
[1736044516733,2.3127,216.23,216.17,12.35346271]
[1736044517139,104.94419398,216.34,216.13,14.07264328]
[1736044517140,91.02419398,216.34,216.19,11.29264328]
[1736044517345,1.4515,216.49,216.26,11.29264328]
[1736044517545,11.29264328,216.42,216.26,14.07264328]
[1736044517747,11.29264328,216.42,216.29,11.29264328]
[1736044517942,11.29264328,216.45,216.29,11.29264328]
[1736044518148,14.07264328,216.45,216.3,4.75056905]
[1736044518337,14.07264328,216.45,216.32,11.29264328]
[1736044518844,14.07264328,216.45,216.33,4.75056905]
[1736044519147,14.07264328,216.45,216.32,11.29264328]
[1736044519148,11.29264328,216.47,216.34,4.75056905]
[1736044519351,2.78,216.46,216.34,4.75056905]
[1736044519649,2.78,216.46,216.32,11.29264328]
[1736044519650,2.78,216.46,216.35,4.73167354]
[1736044520042,2.78,216.46,216.36,4.73167354]
[1736044520347,4.2213,216.48,216.36,7.51167354]
[1736044520546,4.2213,216.48,216.37,4.73167354]
[1736044520848,4.2213,216.48,216.37,18.80431682]
[1736044521047,4.2213,216.48,216.38,4.73167354]
[1736044521547,6.5313,216.48,216.4,2.3108]
[1736044522146,1.4413,216.48,216.4,2.3108]
[1736044522338,3.7513,216.48,216.4,2.3108]
[1736044522542,11.29264328,216.5,216.41,2.3107]
[1736044522738,2.78,216.52,216.4,11.29264328]
[1736044522944,2.78,216.52,216.42,4.72061403]
[1736044523145,2.78,216.52,216.4,11.29264328]
[1736044523447,2.78,216.53,216.4,11.29264328]
[1736044523644,2.78,216.53,216.41,4.71762596]
[1736044524143,2.78,216.53,216.42,4.71762596]
[1736044524338,2.78,216.53,216.4,11.29264328]
[1736044524538,2.3097,216.51,216.44,2.3104]
[1736044527140,2.78,216.53,216.44,2.3104]
[1736044527141,5.0895,216.53,216.44,2.3104]
[1736044527347,2.3095,216.53,216.44,2.3104]
[1736044527548,2.3095,216.53,216.45,2.3103]
[1736044528050,2.3095,216.53,216.43,11.29264328]
[1736044529546,2.3095,216.53,216.46,2.3102]
[1736044529741,12.68664328,216.54,216.4,11.29264328]
[1736044529946,12.68664328,216.54,216.33,5.5565701]
[1736044529947,2.3099,216.49,216.41,2.9]
[1736044530148,12.68664328,216.54,216.44,2.3104]
[1736044530651,2.3095,216.53,216.45,2.3103]
[1736044533050,2.3095,216.53,216.43,11.29264328]
[1736044533355,2.3095,216.53,216.44,4.71787685]
[1736044533853,2.3095,216.53,216.45,4.71787685]
[1736044534053,2.3095,216.53,216.46,4.71787685]
[1736044534450,2.3095,216.53,216.47,2.3101]
[1736044536452,2.3095,216.53,216.48,4.73275302]
[1736044536852,2.3095,216.53,216.47,2.3101]
[1736044537848,1.394,216.54,216.4,11.29264328]
[1736044537849,1.394,216.54,216.48,4.73905133]
[1736044538047,2.3098,216.5,216.48,4.73905133]
[1736044538251,12.68664328,216.54,216.42,7.56542492]
[1736044538653,12.68664328,216.54,216.43,12.30123765]
[1736044539156,12.68664328,216.54,216.44,12.30123765]
[1736044539657,2.3099,216.49,216.45,12.30123765]
[1736044540049,12.68664328,216.54,216.46,12.30123765]
[1736044540347,2.31,216.48,216.46,12.30123765]
[1736044540555,2.31,216.48,216.47,4.73581273]
[1736044540757,2.31,216.48,216.47,2.46971273]
[1736044540958,2.3102,216.46,216.4,2.3108]
[1736044543962,11.29264328,216.48,216.35,49.76777014]
[1736044544155,11.29264328,216.48,216.35,52.66777014]
[1736044544657,11.29264328,216.48,216.37,2.3111]
[1736044545763,2.3105,216.44,216.38,2.311]
[1736044549655,2.3089,216.59,216.39,11.29264328]
[1736044549861,1.4659,216.67,216.53,11.29264328]
[1736044550064,2.9592,216.66,216.53,11.29264328]
[1736044551067,2.9592,216.66,216.58,2.3089]
[1736044552681,2.9592,216.66,216.59,4.52055306]
[1736044553076,2.9592,216.66,216.6,4.52055306]
[1736044553479,2.9592,216.66,216.58,2.3089]
[1736044554080,5.2673,216.66,216.58,2.3089]
[1736044554480,2.3084,216.63,216.59,4.51053167]
[1736044554679,2.3084,216.63,216.56,2.3091]
[1736044563586,2.3089,216.58,216.51,5.2096]
[1736044563884,11.29264328,216.61,216.52,4.53599597]
[1736044564085,2.3089,216.58,216.52,4.53599597]
[1736044564284,2.3089,216.58,216.51,2.3096]
[1736044564779,2.3089,216.58,216.52,2.3095]
[1736044564988,2.3089,216.58,216.5,2.9]
[1736044565181,4.416,216.67,216.51,4.53715593]
[1736044565380,14.19264328,216.65,216.52,11.29264328]
[1736044565580,14.19264328,216.65,216.52,15.82979921]
[1736044565783,16.50094328,216.65,216.58,2.3089]
[1736044565985,16.50094328,216.65,216.53,4.53715593]
[1736044566286,16.50094328,216.65,216.54,4.53715593]
[1736044566583,16.50094328,216.65,216.55,4.53715593]
[1736044566889,2.3083,216.64,216.58,2.3088]
[1736044571085,15.66954328,216.68,216.52,11.29264328]
[1736044571277,2.3084,216.63,216.56,2.309]
[1736044572686,2.3085,216.62,216.56,2.309]
[1736044573087,2.3085,216.62,216.57,2.309]
[1736044575288,4.3769,216.68,216.49,2.9]
[1736044575289,14.19264328,216.63,216.49,2.9]
[1736044575489,14.19264328,216.63,216.5,4.52882808]
[1736044575689,14.19264328,216.63,216.49,2.9]
[1736044576289,2.309,216.57,216.52,2.3095]
[1736044576890,14.19264328,216.63,216.48,2.9]
[1736044577093,14.19264328,216.63,216.5,2.3097]
[1736044578289,2.3093,216.55,216.5,2.3097]
[1736044578591,2.3093,216.55,216.48,2.3099]
[1736044578790,1.4253,216.59,216.48,2.3099]
[1736044578987,2.3093,216.54,216.48,2.3099]
[1736044579490,2.3093,216.54,216.49,2.3098]
[1736044581095,2.3093,216.54,216.48,2.3099]
[1736044581993,2.3097,216.51,216.46,2.3101]
[1736044582293,2.3097,216.51,216.44,11.29264328]
[1736044583495,2.3097,216.51,216.45,2.3103]
[1736044584794,2.3098,216.5,216.45,2.3103]
[1736044585391,2.31,216.48,216.42,6.84762707]
[1736044585892,2.31,216.48,216.42,2.3106]
[1736044586991,2.3101,216.47,216.38,2.9]
[1736044587395,2.3101,216.47,216.39,4.53946672]
[1736044587695,11.29264328,216.48,216.38,2.311]
[1736044587891,11.29264328,216.48,216.37,11.29264328]
[1736044588092,2.3104,216.45,216.39,2.3109]
[1736044588694,2.3104,216.45,216.4,2.3108]
[1736044588888,3.7555,216.47,216.4,2.3108]
[1736044589594,2.3102,216.46,216.4,2.3108]
[1736044591195,1.374,216.5,216.4,11.29264328]
[1736044591697,1.374,216.5,216.45,2.3102]
[1736044600297,2.84,216.7,216.48,7.2143104]
[1736044600601,7.2143104,216.66,216.58,7.2143104]
[1736044601599,9.5224104,216.66,216.59,2.3088]
[1736044602198,2.3081,216.66,216.59,2.3088]
[1736044603096,5.7699,216.68,216.54,2.84]
[1736044603298,1.4655,216.65,216.56,2.309]
[1736044603900,2.3086,216.61,216.54,5.1493]
[1736044604395,2.3086,216.61,216.54,2.84]
[1736044604597,2.3086,216.61,216.55,2.3092]
[1736044609605,1.4655,216.65,216.55,2.3092]
[1736044609796,2.3085,216.63,216.56,2.3091]
[1736044610205,1.4655,216.65,216.56,2.3091]
[1736044611499,2.3085,216.62,216.56,2.3091]
[1736044614499,2.84,216.63,216.53,4.54424385]
[1736044614705,2.3085,216.62,216.56,2.3091]
[1736044615208,2.3086,216.61,216.56,2.3091]
[1736044615610,2.84,216.63,216.56,2.3091]
[1736044617610,2.3085,216.62,216.56,2.3091]
[1736044618206,2.84,216.63,216.56,2.3091]
[1736044618402,2.3086,216.61,216.56,2.3091]
[1736044619609,2.84,216.63,216.52,11.25649557]
[1736044619811,11.25649557,216.58,216.5,2.3097]
[1736044620012,14.03649557,216.58,216.5,2.3097]
[1736044620207,14.03649557,216.58,216.51,4.54675911]
[1736044620712,14.03649557,216.58,216.5,2.3097]
[1736044621513,2.3091,216.56,216.5,2.3097]
[1736044622210,14.03649557,216.58,216.5,2.3097]
[1736044622211,2.3093,216.55,216.5,2.3097]
[1736044624315,7.21258697,216.54,216.5,2.3097]
[1736044625312,1.4655,216.65,216.5,7.21258697]
[1736044625512,2.78,216.64,216.53,7.21258697]
[1736044625817,7.21258697,216.6,216.53,7.21258697]
[1736044626108,7.21258697,216.6,216.57,2.309]
[1736044626314,7.21258697,216.62,216.55,7.21258697]
[1736044627115,7.21258697,216.62,216.56,2.309]
[1736044627918,7.21258697,216.62,216.57,2.309]
[1736044628715,7.21258697,216.62,216.58,2.3088]
[1736044628917,12.30088697,216.64,216.58,2.3088]
[1736044629620,12.30088697,216.64,216.55,7.21258697]
[1736044629822,12.30088697,216.64,216.59,2.3088]
[1736044631520,7.21258697,216.64,216.59,2.3088]
[1736044631924,7.21258697,216.64,216.6,2.3086]
[1736044633025,7.21258697,216.64,216.61,2.3086]
[1736044633224,1.4655,216.65,216.57,7.21258697]
[1736044633622,1.4655,216.65,216.59,7.21258697]
[1736044634423,1.4655,216.65,216.62,2.3084]
[1736044635331,7.21258697,216.66,216.62,2.3084]
[1736044636929,7.21258697,216.66,216.6,2.3086]
[1736044636930,9.52068697,216.66,216.6,2.3086]
[1736044638932,7.21258697,216.66,216.56,2.78]
[1736044639131,9.52088697,216.64,216.58,2.3088]
[1736044639435,9.52088697,216.64,216.59,4.55240278]
[1736044639630,9.52088697,216.64,216.58,2.3088]
[1736044640527,9.52088697,216.64,216.59,4.55326568]
[1736044640727,9.52088697,216.64,216.58,2.3088]
[1736044641429,9.52088697,216.64,216.59,4.55429371]
[1736044641831,9.52088697,216.64,216.58,2.3088]
[1736044642227,250.68531763,217.01,216.63,7.21258697]
[1736044642429,11.69848697,216.87,216.78,7.21258697]
[1736044642725,11.69848697,216.87,216.8,7.21258697]
[1736044642929,4.4859,216.87,216.8,7.21258697]
[1736044643129,7.21258697,216.9,216.82,7.21258697]
[1736044643831,2.3058,216.88,216.8,2.3065]
[1736044644037,9.51838697,216.88,216.8,7.21258697]
[1736044644237,2.3058,216.88,216.76,14.01492914]
[1736044644435,13.54052914,216.9,216.8,2.3065]
[1736044644738,2.3056,216.9,216.77,4.52860362]
[1736044644940,14.01492914,216.92,216.78,4.52860362]
[1736044645132,16.32022914,216.92,216.79,11.23492914]
[1736044645333,14.01492914,216.92,216.79,11.23492914]
[1736044646035,11.23492914,216.92,216.83,2.3062]
[1736044646340,2.78,216.91,216.79,11.23492914]
[1736044647037,2.3054,216.91,216.82,2.3063]
[1736044647937,14.01492914,216.92,216.82,2.3063]
[1736044648138,2.3056,216.9,216.82,2.3063]
[1736044648531,14.01492914,216.92,216.84,2.3061]
[1736044648735,2.3054,216.91,216.84,2.3061]
[1736044653041,2.3058,216.88,216.8,2.3065]
[1736044656243,255.28811763,217.29,216.86,11.23492914]
[1736044656447,11.23492914,217.13,216.97,11.23492914]
[1736044656649,11.23492914,217.13,217.0,11.23492914]
[1736044656852,13.53802914,217.13,217.04,2.304]
[1736044657249,1.4204,217.14,217.03,11.23492914]
[1736044659353,3.7234,217.14,217.05,2.3039]
[1736044662361,2.3031,217.13,217.05,2.3039]
[1736044663164,1.4204,217.14,217.03,11.23492914]
[1736044663363,12.65532914,217.14,216.99,11.23492914]
[1736044664261,2.88,217.13,216.99,11.23492914]
[1736044664860,2.3033,217.11,217.04,2.304]
[1736044668365,2.304,217.05,216.97,2.3047]
[1736044668556,2.304,217.05,216.94,11.23492914]
[1736044668966,2.304,217.05,216.97,11.23492914]
[1736044669458,2.88,217.07,216.99,2.3045]
[1736044669666,2.3039,217.06,216.99,2.3045]
[1736044671660,2.3039,217.06,217.0,2.3044]
[1736044674966,11.23492914,217.11,216.93,1.4382]
[1736044675165,12.65532914,217.14,217.0,11.23492914]
[1736044675370,2.88,217.13,217.0,11.23492914]
[1736044676474,2.3035,217.1,217.04,2.304]
[1736044677976,2.3035,217.1,217.0,11.23492914]
[1736044678572,2.88,217.12,217.0,11.23492914]
[1736044678775,2.3035,217.09,217.02,2.3041]
[1736044679673,2.3035,217.09,217.03,2.3041]
[1736044681379,2.3033,217.11,217.05,2.3039]
[1736044682277,2.3033,217.11,217.05,9.47823506]
[1736044682879,2.3034,217.1,217.05,9.47823506]
[1736044683783,2.3034,217.1,217.05,2.3039]
[1736044683982,2.3034,217.1,217.05,9.47823506]
[1736044685575,2.3037,217.07,217.02,2.3042]
[1736044685776,2.3037,217.07,217.02,9.47853506]
[1736044686683,2.3038,217.06,217.0,9.47873506]
[1736044687588,2.3038,217.07,217.01,6.78438729]
[1736044688285,2.3038,217.07,217.01,2.3043]
[1736044688479,7.17433506,217.08,217.04,2.304]
[1736044688881,7.17433506,217.08,217.02,7.17433506]
[1736044689281,7.17433506,217.08,217.03,4.47821263]
[1736044689481,7.17433506,217.05,217.03,4.47821263]
[1736044689688,7.17433506,217.05,217.04,4.47821263]
[1736044689885,7.17433506,217.07,217.04,4.47821263]
[1736044690087,7.17433506,217.07,216.99,25.24014791]
[1736044690382,7.17433506,217.07,217.0,4.48146879]
[1736044690584,9.47813506,217.07,217.01,2.3043]
[1736044690885,9.47813506,217.07,217.01,6.78576879]
[1736044691084,2.3038,217.06,217.01,6.78576879]
[1736044691279,2.3038,217.06,217.01,2.3043]
[1736044691476,2.94,217.11,216.99,25.24014791]
[1736044691477,7.17433506,217.05,216.99,25.24014791]
[1736044691680,2.3043,217.02,216.99,25.24014791]
[1736044691882,2.3043,217.02,217.0,50.8253581]
[1736044692088,9.47863506,217.01,217.0,50.8253581]
[1736044692986,9.47863506,217.01,217.0,46.3035581]
[1736044693188,9.47863506,217.01,216.96,179.51221752]
[1736044693189,9.47863506,217.01,216.96,6.32607501]
[1736044693782,2.3045,217.0,216.96,6.32607501]
[1736044693979,2.3045,217.0,216.94,15.80551007]
[1736044694483,2.3045,217.0,216.95,4.49781407]
[1736044694889,2.3046,216.99,216.94,13.50041007]
[1736044695285,7.17433506,217.01,216.94,7.17433506]
[1736044695583,2.3047,216.98,216.94,7.17433506]
[1736044699281,2.3047,216.98,216.93,9.47953506]
[1736044699485,2.3047,216.98,216.94,4.51589789]
[1736044699685,2.3047,216.98,216.93,9.47953506]
[1736044700392,2.3047,216.98,216.94,4.52061134]
[1736044700888,2.3047,216.98,216.93,9.47953506]
[1736044701283,1.4478,217.06,216.97,7.17433506]
[1736044701487,2.304,217.04,216.99,7.17433506]
[1736044702591,2.304,217.04,216.99,9.47883506]
[1736044706891,7.17433506,217.04,216.93,2.94]
[1736044707090,7.17433506,217.04,216.97,7.17433506]
[1736044707594,7.17433506,216.98,216.86,1.3588]
[1736044707792,10.11433506,216.98,216.9,7.17433506]
[1736044709088,2.305,216.96,216.9,9.47973506]
[1736044709290,2.305,216.96,216.9,7.17433506]
[1736044709887,10.11433506,216.98,216.9,7.17433506]
[1736044710088,12.41913506,216.98,216.92,7.17433506]
[1736044710383,5.2448,216.98,216.92,7.17433506]
[1736044710990,5.2448,216.98,216.92,9.47953506]
[1736044711586,12.41913506,216.98,216.92,9.47953506]
[1736044711982,10.11433506,216.98,216.9,7.17433506]
[1736044712187,2.305,216.95,216.9,9.47973506]
[1736044712384,7.17433506,216.94,216.86,7.17433506]
[1736044713388,2.3052,216.93,216.87,2.3058]
[1736044716187,2.3052,216.93,216.88,2.3057]
[1736044717896,8.62343506,216.96,216.88,7.17433506]
[1736044718390,2.305,216.95,216.9,2.3054]
[1736044719998,2.3052,216.94,216.88,9.47993506]
[1736044720399,1.484,216.97,216.88,7.17433506]
[1736044720595,12.35913506,216.97,216.91,2.3053]
[1736044722694,10.05433506,216.97,216.91,2.3053]
[1736044722895,2.3049,216.96,216.91,2.3053]
[1736044723096,7.17433506,216.95,216.88,7.17433506]
[1736044723396,9.47953506,216.93,216.86,4.51188124]
[1736044723699,7.17433506,216.93,216.86,7.17433506]
[1736044723899,2.3053,216.92,216.87,2.3058]
[1736044728396,2.896,217.02,216.9,7.17433506]
[1736044728597,2.3049,216.97,216.9,7.17433506]
[1736044729500,2.3049,216.97,216.92,2.3053]
[1736044729896,5.1849,216.97,216.92,2.3053]
[1736044730603,10.05433506,216.98,216.93,2.3051]
[1736044730802,2.88,216.98,216.92,7.17433506]
[1736044731307,2.3046,216.99,216.92,7.17433506]
[1736044731603,2.3048,216.97,216.92,2.3052]
[1736044731798,7.17433506,216.94,216.86,7.17433506]
[1736044732200,2.88,216.93,216.86,7.17433506]
[1736044732606,5.1852,216.93,216.87,2.3058]
[1736044734209,5.1852,216.93,216.88,2.3057]
[1736044734707,2.88,216.93,216.88,2.3057]
[1736044735404,9.47943506,216.94,216.88,2.3057]
[1736044736608,9.47943506,216.94,216.89,6.83615063]
[1736044737011,9.47943506,216.94,216.89,2.3056]
[1736044740908,2.3052,216.93,216.88,2.3057]
[1736044741914,7.17433506,216.92,216.86,2.3058]
[1736044743513,2.3054,216.91,216.86,2.3058]
[1736044747117,9.47983506,216.9,216.85,2.306]
[1736044747410,7.17433506,216.9,216.82,7.17433506]
[1736044747612,7.17433506,216.88,216.83,4.53659655]
[1736044747816,7.17433506,216.86,216.79,32.47863511]
[1736044748118,7.17433506,216.86,216.79,7.17433506]
[1736044748416,9.48033506,216.86,216.8,6.84422786]
[1736044748617,9.48033506,216.86,216.81,4.53772786]
[1736044748812,9.48033506,216.86,216.82,4.53772786]
[1736044749218,9.48033506,216.86,216.83,4.53772786]
[1736044749412,9.48033506,216.86,216.8,2.3065]
[1736044749613,9.48033506,216.86,216.81,4.5384665]
[1736044750008,9.48033506,216.86,216.8,2.3065]
[1736044750009,9.48033506,216.86,216.82,4.5384665]
[1736044750417,9.48033506,216.86,216.83,4.5384665]
[1736044750616,9.48033506,216.86,216.8,2.3065]
[1736044750812,9.48033506,216.86,216.79,7.17433506]
[1736044751020,7.17433506,216.86,216.81,2.3065]
[1736044751221,7.17433506,216.86,216.82,4.53924389]
[1736044751421,7.17433506,216.86,216.83,4.53924389]
[1736044751922,7.17433506,216.86,216.81,2.3065]
[1736044752416,7.17433506,216.86,216.82,4.54125974]
[1736044752614,7.17433506,216.86,216.81,2.3065]
[1736044752815,9.48033506,216.86,216.81,2.3065]
[1736044753222,9.48033506,216.86,216.82,4.54061915]
[1736044753618,9.48033506,216.86,216.81,2.3065]
[1736044754121,9.48033506,216.86,216.82,4.54092579]
[1736044754525,9.48033506,216.86,216.8,2.3066]
[1736044754721,2.306,216.86,216.81,4.54023513]
[1736044754929,2.306,216.86,216.79,7.17433506]
[1736044755229,2.306,216.86,216.8,4.54028581]
[1736044755525,2.306,216.86,216.81,2.3064]
[1736044755725,2.306,216.86,216.81,6.84668581]
[1736044756123,2.306,216.86,216.81,2.3064]
[1736044757926,2.84,216.89,216.73,4.4087]
[1736044757927,2.3062,216.84,216.78,9.48103506]
[1736044758127,2.3062,216.84,216.79,4.54193923]
[1736044758526,2.3062,216.84,216.78,7.17433506]
[1736044759533,2.3062,216.84,216.79,2.3067]
[1736044759728,7.17433506,216.83,216.79,2.3067]
[1736044759927,7.17433506,216.83,216.76,7.17433506]
[1736044760128,9.48063506,216.83,216.77,2.3068]
[1736044760326,9.48063506,216.83,216.76,7.17433506]
[1736044760524,2.3065,216.81,216.77,4.53898983]
[1736044760831,9.48083506,216.81,216.75,2.3071]
[1736044761433,2.3068,216.78,216.72,2.3074]
[1736044761931,2.3068,216.78,216.73,4.53948737]
[1736044762133,2.3068,216.78,216.72,2.3074]
[1736044762432,2.3068,216.78,216.73,2.3073]
[1736044762827,2.3068,216.78,216.71,7.17433506]
[1736044763028,7.17433506,216.77,216.72,4.53735135]
[1736044763330,7.17433506,216.77,216.71,2.3074]
[1736044763331,9.48123506,216.77,216.71,2.3074]
[1736044764234,9.48123506,216.77,216.72,4.53706702]
[1736044764630,9.48123506,216.77,216.71,2.3074]
[1736044765435,7.17433506,216.75,216.68,7.17433506]
[1736044765630,7.17433506,216.75,216.69,6.84023737]
[1736044766131,7.17433506,216.75,216.69,2.3077]
[1736044766532,7.17433506,216.75,216.7,2.3076]
[1736044766930,7.17433506,216.75,216.68,7.17433506]
[1736044767131,2.3072,216.74,216.68,7.17433506]
[1736044767731,7.17433506,216.73,216.67,2.308]
[1736044767936,2.3074,216.72,216.67,2.308]
[1736044769635,9.48193506,216.71,216.64,2.3082]
[1736044770035,9.48193506,216.71,216.63,7.17433506]
[1736044770640,9.48193506,216.71,216.63,9.48263506]
[1736044770839,12.32193506,216.71,216.63,9.48263506]
[1736044771138,10.01433506,216.71,216.63,9.48263506]
[1736044771342,2.3077,216.7,216.63,9.48263506]
[1736044771940,7.17433506,216.69,216.63,9.48263506]
[1736044772137,10.01433506,216.71,216.66,2.308]
[1736044772338,10.01433506,216.71,216.63,7.17433506]
[1736044772638,10.01433506,216.71,216.64,7.17433506]
[1736044773042,10.01433506,216.71,216.66,2.308]
[1736044774938,2.84,216.71,216.66,7.17433506]
[1736044775145,2.84,216.71,216.68,7.17433506]
[1736044776241,9.95433506,216.76,216.68,7.17433506]
[1736044776443,7.17433506,216.76,216.68,7.17433506]
[1736044777647,7.17433506,216.76,216.71,2.3075]
[1736044778239,9.48133506,216.76,216.68,7.17433506]
[1736044778443,9.48133506,216.76,216.69,2.3077]
[1736044778644,9.48133506,216.76,216.68,7.17433506]
[1736044779548,9.48133506,216.76,216.7,2.3076]
[1736044779848,2.3071,216.75,216.7,2.3076]
[1736044783353,7.17433506,216.74,216.68,7.17433506]
[1736044783643,7.17433506,216.74,216.69,2.3077]
[1736044783644,9.48153506,216.74,216.69,2.3077]
[1736044786556,2.3072,216.74,216.69,2.3077]
[1736044786758,9.48153506,216.74,216.69,2.3077]
[1736044792752,7.17433506,216.7,216.6,6.32607501]
[1736044792952,7.17433506,216.7,216.63,7.17433506]
[1736044793148,7.17433506,216.68,216.63,7.17433506]
[1736044793457,9.48223506,216.68,216.63,7.17433506]
[1736044795159,2.78,216.72,216.63,9.48273506]
[1736044795361,7.17433506,216.7,216.63,7.17433506]
[1736044796252,5.0874,216.72,216.65,7.17433506]
[1736044797058,2.78,216.72,216.67,2.3079]
[1736044800059,5.0875,216.72,216.67,2.3079]
[1736044800256,2.78,216.72,216.65,7.17433506]
[1736044800457,7.17433506,216.71,216.65,9.48243506]
[1736044800960,7.17433506,216.71,216.66,2.308]
[1736044800961,9.48183506,216.71,216.66,2.308]
[1736044803558,9.48183506,216.71,216.67,4.54601418]
[1736044804064,9.48183506,216.71,216.66,2.308]
[1736044804463,9.48183506,216.71,216.64,7.17433506]
[1736044804464,7.17433506,216.71,216.64,7.17433506]
[1736044804663,7.17433506,216.71,216.66,2.308]
[1736044804964,3.46282636,216.8,216.64,7.17433506]
[1736044804965,7.17433506,216.73,216.65,4.54818193]
[1736044805167,7.17433506,216.73,216.69,2.3077]
[1736044805361,9.89433506,216.75,216.68,7.17433506]
[1736044805862,3.46281239,216.78,216.7,7.17433506]
[1736044806063,9.89433506,216.8,216.72,7.17433506]